[Event "*** Titled Tuesday Blitz"]
[Site "Chess.com"]
[Date "2021.02.16"]
[Round "5"]
[White "Moultino06"]
[Black "Novoselski"]
[Result "1-0"]
[WhiteElo "2487"]
[BlackElo "2315"]
[TimeControl "180+1"]
[EndTime "10:57:58 PST"]
[Termination "Moultino06 won by checkmate"]

1. b3 {[%clk 0:03:00.9]} 1... Nf6 {[%clk 0:01:32.2]} 2. Bb2 {[%clk 0:03:01.8]}
2... g6 {[%clk 0:01:31.7]} 3. Bxf6 {[%clk 0:02:58.8]} 3... exf6 {[%clk
0:01:30.4]} 4. c4 {[%clk 0:02:59.7]} 4... Bg7 {[%clk 0:01:30.4]} 5. Nc3 {[%clk
0:02:59.2]} 5... O-O {[%clk 0:01:30.2]} 6. e3 {[%clk 0:02:59]} 6... c6 {[%clk
0:01:30.2]} 7. d4 {[%clk 0:02:51.4]} 7... d6 {[%clk 0:01:30.3]} 8. g3 {[%clk
0:02:50.8]} 8... f5 {[%clk 0:01:23.9]} 9. Bg2 {[%clk 0:02:51.1]} 9... a5 {[%clk
0:01:21.9]} 10. Nge2 {[%clk 0:02:51.4]} 10... Na6 {[%clk 0:01:21]} 11. O-O
{[%clk 0:02:51.8]} 11... Nc7 {[%clk 0:01:19.6]} 12. Qd3 {[%clk 0:02:52.2]} 12...
Rb8 {[%clk 0:01:17.5]} 13. a3 {[%clk 0:02:51.6]} 13... d5 {[%clk 0:01:13.8]} 14.
cxd5 {[%clk 0:02:47.6]} 14... Nxd5 {[%clk 0:01:09.1]} 15. Nxd5 {[%clk 0:02:47]}
15... cxd5 {[%clk 0:01:10]} 16. Nf4 {[%clk 0:02:43.5]} 16... Be6 {[%clk
0:01:07]} 17. Qb5 {[%clk 0:02:43.8]} 17... Qd6 {[%clk 0:00:51.2]} 18. Rfc1
{[%clk 0:02:17.4]} 18... Rfd8 {[%clk 0:00:48.4]} 19. Qxa5 {[%clk 0:02:17.5]}
19... b5 {[%clk 0:00:41.1]} 20. Rc5 {[%clk 0:02:10.5]} 20... b4 {[%clk
0:00:36.2]} 21. axb4 {[%clk 0:02:06.5]} 21... Bf8 {[%clk 0:00:34.2]} 22. b5
{[%clk 0:01:31.3]} 22... Qe7 {[%clk 0:00:29.3]} 23. Rc6 {[%clk 0:01:24]} 23...
Qd7 {[%clk 0:00:21.9]} 24. Rac1 {[%clk 0:01:14]} 24... Bd6 {[%clk 0:00:20]} 25.
Nxd5 {[%clk 0:01:09.9]} 25... Bxd5 {[%clk 0:00:19.5]} 26. Bxd5 {[%clk
0:01:10.8]} 26... Kg7 {[%clk 0:00:19.4]} 27. Bg2 {[%clk 0:01:09.7]} 27... Ra8
{[%clk 0:00:16.3]} 28. Qc3 {[%clk 0:00:58.1]} 28... Rab8 {[%clk 0:00:14.8]} 29.
b6 {[%clk 0:00:54.4]} 29... Qe7 {[%clk 0:00:13.4]} 30. Qc4 {[%clk 0:00:52.1]}
30... Kg8 {[%clk 0:00:12.6]} 31. Qb5 {[%clk 0:00:47.2]} 31... Rf8 {[%clk
0:00:12.1]} 32. Bd5 {[%clk 0:00:45.4]} 32... Kg7 {[%clk 0:00:11.4]} 33. Kg2
{[%clk 0:00:45.3]} 33... h5 {[%clk 0:00:10.7]} 34. h4 {[%clk 0:00:39.2]} 34...
f6 {[%clk 0:00:09.1]} 35. Qa6 {[%clk 0:00:29.9]} 35... Kh6 {[%clk 0:00:08.8]}
36. b7 {[%clk 0:00:28.5]} 36... Bb4 {[%clk 0:00:07.7]} 37. Rc7 {[%clk
0:00:27.7]} 37... Qd6 {[%clk 0:00:06.2]} 38. Qxd6 {[%clk 0:00:28.3]} 38... Bxd6
{[%clk 0:00:06.7]} 39. Rd7 {[%clk 0:00:29.2]} 39... Ba3 {[%clk 0:00:06.5]} 40.
Rcc7 {[%clk 0:00:28.1]} 40... Rfd8 {[%clk 0:00:05.2]} 41. Rh7# {[%clk
0:00:28.2]} 1-0

[Event "*** Titled Tuesday Blitz"]
[Site "Chess.com"]
[Date "2021.02.16"]
[Round "5"]
[White "Tpros"]
[Black "sara_khm"]
[Result "0-1"]
[WhiteElo "2470"]
[BlackElo "2642"]
[TimeControl "180+1"]
[EndTime "10:58:00 PST"]
[Termination "sara_khm won on time"]

1. e3 {[%clk 0:03:00.9]} 1... e5 {[%clk 0:02:59.5]} 2. c4 {[%clk 0:02:59.4]}
2... Nf6 {[%clk 0:02:56.3]} 3. a3 {[%clk 0:02:59.1]} 3... c6 {[%clk 0:02:53.1]}
4. d4 {[%clk 0:02:57.6]} 4... exd4 {[%clk 0:02:52.9]} 5. Qxd4 {[%clk 0:02:57.1]}
5... Be7 {[%clk 0:02:52]} 6. Nc3 {[%clk 0:02:54.8]} 6... O-O {[%clk 0:02:51.7]}
7. Nf3 {[%clk 0:02:53.7]} 7... d6 {[%clk 0:02:51.9]} 8. g3 {[%clk 0:02:52.7]}
8... Be6 {[%clk 0:02:51.9]} 9. Ng5 {[%clk 0:02:46.8]} 9... Bc8 {[%clk
0:02:46.1]} 10. Bg2 {[%clk 0:02:44.8]} 10... h6 {[%clk 0:02:44.2]} 11. Nf3
{[%clk 0:02:42]} 11... Be6 {[%clk 0:02:44.2]} 12. O-O {[%clk 0:02:40.9]} 12...
Nbd7 {[%clk 0:02:44.3]} 13. Rd1 {[%clk 0:02:26.8]} 13... Nc5 {[%clk 0:02:40.1]}
14. Nd2 {[%clk 0:02:08.1]} 14... a5 {[%clk 0:02:39.4]} 15. h3 {[%clk 0:01:46]}
15... Nfd7 {[%clk 0:02:38.2]} 16. Nce4 {[%clk 0:01:37.9]} 16... f5 {[%clk
0:02:28.7]} 17. Nxc5 {[%clk 0:01:36.4]} 17... Nxc5 {[%clk 0:02:25.7]} 18. Qc3
{[%clk 0:01:33.5]} 18... a4 {[%clk 0:02:24]} 19. Qc2 {[%clk 0:01:31.4]} 19...
Bf6 {[%clk 0:02:20.3]} 20. Nf3 {[%clk 0:01:31]} 20... Nb3 {[%clk 0:02:18.6]} 21.
Rb1 {[%clk 0:01:30.7]} 21... Qe7 {[%clk 0:01:59.2]} 22. Nd4 {[%clk 0:01:16.7]}
22... Bxd4 {[%clk 0:01:58.2]} 23. exd4 {[%clk 0:01:16.4]} 23... f4 {[%clk
0:01:58.5]} 24. Qe2 {[%clk 0:00:21.6]} 24... fxg3 {[%clk 0:01:40.4]} 25. fxg3
{[%clk 0:00:20.3]} 25... Qf7 {[%clk 0:01:39.7]} 26. d5 {[%clk 0:00:15.3]} 26...
Bf5 {[%clk 0:01:39.2]} 27. Rf1 {[%clk 0:00:15.2]} 27... Qg6 {[%clk 0:01:34.1]}
28. Rxf5 {[%clk 0:00:10.2]} 28... Qxf5 {[%clk 0:01:30.9]} 29. Be4 {[%clk
0:00:07.7]} 29... Qxh3 {[%clk 0:01:28.4]} 30. Bf4 {[%clk 0:00:07.3]} 30... Rxf4
{[%clk 0:01:23.9]} 31. gxf4 {[%clk 0:00:06.6]} 31... Qg3+ {[%clk 0:01:24]} 32.
Bg2 {[%clk 0:00:04.5]} 32... Qxf4 {[%clk 0:01:20.3]} 33. dxc6 {[%clk 0:00:04.1]}
33... bxc6 {[%clk 0:01:20.2]} 34. Bxc6 {[%clk 0:00:03.5]} 34... Rf8 {[%clk
0:01:19.9]} 35. Rf1 {[%clk 0:00:02.3]} 35... Qxf1+ {[%clk 0:00:52.4]} 36. Qxf1
{[%clk 0:00:03.2]} 36... Rxf1+ {[%clk 0:00:52.3]} 37. Kxf1 {[%clk 0:00:04.1]}
37... Kf8 {[%clk 0:00:52.6]} 38. Ke1 {[%clk 0:00:03.2]} 38... Na5 {[%clk
0:00:49.8]} 39. Bxa4 {[%clk 0:00:02.9]} 39... Nxc4 {[%clk 0:00:49.9]} 40. Bb5
{[%clk 0:00:03]} 40... Nxb2 {[%clk 0:00:44.4]} 41. Kd2 {[%clk 0:00:02.5]} 41...
d5 {[%clk 0:00:43.4]} 42. Kc3 {[%clk 0:00:02.4]} 42... Nc4 {[%clk 0:00:43.4]}
43. a4 {[%clk 0:00:02.1]} 43... Ke7 {[%clk 0:00:42.3]} 0-1

[Event "*** Titled Tuesday Blitz"]
[Site "Chess.com"]
[Date "2021.02.16"]
[Round "5"]
[White "mr_gustavo"]
[Black "KafkaesqueKnight"]
[Result "0-1"]
[WhiteElo "2369"]
[BlackElo "2226"]
[TimeControl "180+1"]
[EndTime "10:58:01 PST"]
[Termination "KafkaesqueKnight won by resignation"]

1. d4 {[%clk 0:03:00.9]} 1... Nf6 {[%clk 0:02:59.1]} 2. c4 {[%clk 0:03:00.5]}
2... e6 {[%clk 0:02:58.1]} 3. Nc3 {[%clk 0:02:57.2]} 3... Bb4 {[%clk 0:02:56.9]}
4. e3 {[%clk 0:02:55.1]} 4... d5 {[%clk 0:02:56.4]} 5. Nf3 {[%clk 0:02:54.1]}
5... O-O {[%clk 0:02:54.2]} 6. a3 {[%clk 0:02:54.3]} 6... Be7 {[%clk 0:02:48.4]}
7. cxd5 {[%clk 0:02:52.7]} 7... exd5 {[%clk 0:02:47]} 8. Ne5 {[%clk 0:02:53.2]}
8... c6 {[%clk 0:02:36.3]} 9. f4 {[%clk 0:02:53.2]} 9... Ne4 {[%clk 0:02:32.7]}
10. Bd3 {[%clk 0:02:46.5]} 10... f6 {[%clk 0:02:29]} 11. Nf3 {[%clk 0:02:35]}
11... f5 {[%clk 0:02:16]} 12. Ne5 {[%clk 0:02:34]} 12... Nd7 {[%clk 0:02:16.4]}
13. Nxe4 {[%clk 0:02:32.7]} 13... fxe4 {[%clk 0:02:15.2]} 14. Be2 {[%clk
0:02:31.8]} 14... Nxe5 {[%clk 0:02:10.1]} 15. dxe5 {[%clk 0:02:32.7]} 15... Bh4+
{[%clk 0:01:28.5]} 16. g3 {[%clk 0:02:32.2]} 16... Be7 {[%clk 0:01:28.8]} 17.
O-O {[%clk 0:02:31.4]} 17... Bc5 {[%clk 0:01:24.1]} 18. b4 {[%clk 0:02:30.4]}
18... Bb6 {[%clk 0:01:22.9]} 19. a4 {[%clk 0:02:29.7]} 19... a6 {[%clk
0:01:18.3]} 20. Bg4 {[%clk 0:02:16.2]} 20... Qe7 {[%clk 0:01:08.3]} 21. Bxc8
{[%clk 0:02:15.4]} 21... Raxc8 {[%clk 0:01:05.2]} 22. Qb3 {[%clk 0:02:12.6]}
22... Kh8 {[%clk 0:00:56.4]} 23. Bb2 {[%clk 0:02:11.3]} 23... Qe6 {[%clk
0:00:46.6]} 24. Bd4 {[%clk 0:02:08.8]} 24... Bxd4 {[%clk 0:00:42.1]} 25. exd4
{[%clk 0:02:09.5]} 25... h5 {[%clk 0:00:42.5]} 26. b5 {[%clk 0:02:08.4]} 26...
cxb5 {[%clk 0:00:40.1]} 27. axb5 {[%clk 0:02:09.3]} 27... Rc4 {[%clk 0:00:36.7]}
28. bxa6 {[%clk 0:02:08.6]} 28... bxa6 {[%clk 0:00:37.6]} 29. Qe3 {[%clk
0:01:59]} 29... h4 {[%clk 0:00:31.1]} 30. gxh4 {[%clk 0:01:51]} 30... Qg4+
{[%clk 0:00:21.2]} 31. Qg3 {[%clk 0:01:48.8]} 31... Qxg3+ {[%clk 0:00:19.6]} 32.
hxg3 {[%clk 0:01:49.7]} 32... Rxd4 {[%clk 0:00:17.8]} 33. Rxa6 {[%clk
0:01:48.8]} 33... Rd3 {[%clk 0:00:17.5]} 34. Kg2 {[%clk 0:01:47.3]} 34... Rb8
{[%clk 0:00:17.9]} 35. e6 {[%clk 0:01:43.4]} 35... Kg8 {[%clk 0:00:17.8]} 36.
Rf2 {[%clk 0:01:28.3]} 36... Rbb3 {[%clk 0:00:17.7]} 37. Ra8+ {[%clk 0:01:27.8]}
37... Kh7 {[%clk 0:00:17.3]} 38. e7 {[%clk 0:01:28.3]} 38... Rxg3+ {[%clk
0:00:17.5]} 39. Kh1 {[%clk 0:01:13.7]} 39... Rh3+ {[%clk 0:00:11.1]} 40. Rh2
{[%clk 0:01:13.3]} 40... Rhc3 {[%clk 0:00:03.7]} 41. e8=Q {[%clk 0:00:41.1]}
41... Rc1+ {[%clk 0:00:02.3]} 42. Kg2 {[%clk 0:00:41]} 42... Rc2+ {[%clk
0:00:02.7]} 0-1

[Event "*** Titled Tuesday Blitz"]
[Site "Chess.com"]
[Date "2021.02.16"]
[Round "5"]
[White "aa175"]
[Black "Sjakkerntobi"]
[Result "1-0"]
[WhiteElo "2609"]
[BlackElo "2329"]
[TimeControl "180+1"]
[EndTime "10:58:03 PST"]
[Termination "aa175 won by resignation"]

1. d4 {[%clk 0:03:00.9]} 1... e6 {[%clk 0:02:59.7]} 2. Nf3 {[%clk 0:03:01.8]}
2... Nf6 {[%clk 0:03:00]} 3. Bf4 {[%clk 0:03:02.2]} 3... c5 {[%clk 0:02:59.6]}
4. e3 {[%clk 0:03:02.7]} 4... Nc6 {[%clk 0:02:59.8]} 5. Nbd2 {[%clk 0:03:03.2]}
5... d5 {[%clk 0:03:00.5]} 6. c3 {[%clk 0:03:03.4]} 6... Bd6 {[%clk 0:03:01.1]}
7. Bg3 {[%clk 0:03:03.9]} 7... O-O {[%clk 0:03:01.7]} 8. Bd3 {[%clk 0:03:04.4]}
8... b6 {[%clk 0:03:02.2]} 9. e4 {[%clk 0:03:05.1]} 9... Be7 {[%clk 0:03:01.9]}
10. Ne5 {[%clk 0:03:05.4]} 10... Nxe5 {[%clk 0:02:28.7]} 11. dxe5 {[%clk
0:03:06.3]} 11... Nxe4 {[%clk 0:02:26]} 12. Nxe4 {[%clk 0:03:07.2]} 12... dxe4
{[%clk 0:02:26.9]} 13. Bxe4 {[%clk 0:03:08.1]} 13... Qxd1+ {[%clk 0:02:23.8]}
14. Rxd1 {[%clk 0:03:09]} 14... Rb8 {[%clk 0:02:24.2]} 15. Ke2 {[%clk
0:03:09.2]} 15... Ba6+ {[%clk 0:02:21.5]} 16. Ke3 {[%clk 0:03:08.4]} 16... Rfd8
{[%clk 0:02:21.9]} 17. f4 {[%clk 0:03:07.3]} 17... Rxd1 {[%clk 0:02:20.2]} 18.
Rxd1 {[%clk 0:03:07.1]} 18... Rd8 {[%clk 0:02:21.1]} 19. Rxd8+ {[%clk
0:03:06.2]} 19... Bxd8 {[%clk 0:02:22]} 20. a4 {[%clk 0:03:03.8]} 20... g6
{[%clk 0:02:16.6]} 21. Bd3 {[%clk 0:03:02.3]} 21... Bb7 {[%clk 0:02:14.6]} 22.
Bf1 {[%clk 0:03:00.3]} 22... Kf8 {[%clk 0:02:14.5]} 23. Be1 {[%clk 0:02:56.7]}
23... Bc6 {[%clk 0:02:13.3]} 24. b3 {[%clk 0:02:52]} 24... Bd5 {[%clk
0:02:13.1]} 25. c4 {[%clk 0:02:43.6]} 25... Bc6 {[%clk 0:02:09.8]} 26. g4 {[%clk
0:02:42.2]} 26... Kg7 {[%clk 0:02:06.4]} 27. Be2 {[%clk 0:02:36.9]} 27... Bc7
{[%clk 0:02:05.8]} 28. Bh4 {[%clk 0:02:35.2]} 28... Kf8 {[%clk 0:02:04.3]} 29.
Bf6 {[%clk 0:02:32.6]} 29... Ke8 {[%clk 0:02:03.9]} 30. h4 {[%clk 0:02:32.2]}
30... Bd8 {[%clk 0:02:03.9]} 31. f5 {[%clk 0:02:27.5]} 31... Bxf6 {[%clk
0:01:59.1]} 32. exf6 {[%clk 0:02:27.4]} 32... exf5 {[%clk 0:01:42.7]} 33. gxf5
{[%clk 0:02:28.3]} 33... Bd7 {[%clk 0:01:36]} 34. Bd3 {[%clk 0:02:11.7]} 34...
Bc6 {[%clk 0:01:24.7]} 35. Kf4 {[%clk 0:01:45.5]} 35... Bg2 {[%clk 0:01:13.8]}
36. Kg5 {[%clk 0:01:42.6]} 36... Kf8 {[%clk 0:01:13.7]} 37. Kh6 {[%clk
0:01:34.8]} 37... Kg8 {[%clk 0:01:13.9]} 38. fxg6 {[%clk 0:01:34.4]} 38... hxg6
{[%clk 0:01:14.8]} 39. Kg5 {[%clk 0:01:25.3]} 39... Kf8 {[%clk 0:01:07.9]} 40.
Kf4 {[%clk 0:01:21]} 40... Ke8 {[%clk 0:01:07.9]} 41. Ke5 {[%clk 0:01:20.8]}
41... Kd7 {[%clk 0:01:08]} 42. Be2 {[%clk 0:01:20.2]} 42... Bc6 {[%clk
0:01:03.3]} 43. Bg4+ {[%clk 0:01:19.8]} 43... Kc7 {[%clk 0:00:59.7]} 44. Be6
{[%clk 0:00:41.4]} 44... Be8 {[%clk 0:00:52.5]} 45. Bf5 {[%clk 0:00:35.2]} 45...
Kc6 {[%clk 0:00:40.9]} 46. Bxg6 {[%clk 0:00:20]} 46... fxg6 {[%clk 0:00:40.7]}
47. Ke6 {[%clk 0:00:20.9]} 47... Bd7+ {[%clk 0:00:39.8]} 48. Ke7 {[%clk
0:00:20.6]} 1-0

[Event "*** Titled Tuesday Blitz"]
[Site "Chess.com"]
[Date "2021.02.16"]
[Round "5"]
[White "FMJoseHerrera"]
[Black "zurzan"]
[Result "1-0"]
[WhiteElo "2593"]
[BlackElo "2041"]
[TimeControl "180+1"]
[EndTime "10:58:03 PST"]
[Termination "FMJoseHerrera won on time"]

1. Nf3 {[%clk 0:03:00.9]} 1... d6 {[%clk 0:02:58.9]} 2. g3 {[%clk 0:02:59.5]}
2... f5 {[%clk 0:02:57.1]} 3. Bg2 {[%clk 0:02:59.6]} 3... Nf6 {[%clk 0:02:57.3]}
4. d3 {[%clk 0:02:59.3]} 4... g6 {[%clk 0:02:57.6]} 5. Nc3 {[%clk 0:02:58.5]}
5... Bg7 {[%clk 0:02:57.6]} 6. h4 {[%clk 0:02:57.3]} 6... O-O {[%clk 0:02:54.9]}
7. h5 {[%clk 0:02:56]} 7... Nxh5 {[%clk 0:02:54.8]} 8. Bg5 {[%clk 0:02:55.2]}
8... h6 {[%clk 0:02:53.4]} 9. Bd2 {[%clk 0:02:52.7]} 9... e5 {[%clk 0:02:49.1]}
10. Nh4 {[%clk 0:02:50.4]} 10... Qe8 {[%clk 0:02:45.6]} 11. e4 {[%clk
0:02:47.9]} 11... f4 {[%clk 0:02:39.5]} 12. Nxg6 {[%clk 0:02:45.2]} 12... Qxg6
{[%clk 0:02:37.9]} 13. Qxh5 {[%clk 0:02:44.6]} 13... Qxh5 {[%clk 0:02:37.4]} 14.
Rxh5 {[%clk 0:02:45.5]} 14... Bg4 {[%clk 0:02:35.4]} 15. Rh4 {[%clk 0:02:43.6]}
15... f3 {[%clk 0:02:09.6]} 16. Rxg4 {[%clk 0:02:38.2]} 16... fxg2 {[%clk
0:02:08.8]} 17. Ke2 {[%clk 0:02:38.1]} 17... Kh7 {[%clk 0:02:00.6]} 18. Rg1
{[%clk 0:02:33.5]} 18... Nc6 {[%clk 0:01:58.9]} 19. Rxg2 {[%clk 0:02:32.6]}
19... Nd4+ {[%clk 0:01:58.9]} 20. Kd1 {[%clk 0:02:33.1]} 20... Nf3 {[%clk
0:01:58.3]} 21. Nd5 {[%clk 0:02:20.6]} 21... Nxd2 {[%clk 0:01:52.2]} 22. Kxd2
{[%clk 0:02:18]} 22... Rf7 {[%clk 0:01:45.4]} 23. Ne3 {[%clk 0:02:16.3]} 23...
Raf8 {[%clk 0:01:39.7]} 24. Nf5 {[%clk 0:02:16.1]} 24... Bf6 {[%clk 0:01:32.2]}
25. Rh2 {[%clk 0:02:14.5]} 25... Bg7 {[%clk 0:01:17.1]} 26. Ke3 {[%clk
0:01:50.4]} 26... d5 {[%clk 0:01:07.2]} 27. Rh5 {[%clk 0:01:43.1]} 27... d4+
{[%clk 0:01:06.1]} 28. Ke2 {[%clk 0:01:42.6]} 28... Re8 {[%clk 0:00:56.1]} 29.
Rgh4 {[%clk 0:01:28.7]} 29... Re6 {[%clk 0:00:55.6]} 30. g4 {[%clk 0:01:27.7]}
30... Kg8 {[%clk 0:00:38.3]} 31. Nxh6+ {[%clk 0:01:15.1]} 31... Bxh6 {[%clk
0:00:39.2]} 32. Rxh6 {[%clk 0:01:16]} 32... Rxh6 {[%clk 0:00:30]} 33. Rxh6
{[%clk 0:01:16.9]} 33... Kg7 {[%clk 0:00:28.8]} 34. Rh5 {[%clk 0:01:16.8]} 34...
Kf6 {[%clk 0:00:27]} 35. Rf5+ {[%clk 0:01:15.5]} 35... Ke6 {[%clk 0:00:23.6]}
36. Rxf7 {[%clk 0:01:14.4]} 36... Kxf7 {[%clk 0:00:24.5]} 37. f4 {[%clk
0:01:14.6]} 37... Kf6 {[%clk 0:00:20.9]} 38. Kf3 {[%clk 0:01:07.3]} 38... c5
{[%clk 0:00:20.1]} 39. g5+ {[%clk 0:00:59.5]} 39... Kg6 {[%clk 0:00:16.8]} 40.
Kg4 {[%clk 0:00:59.9]} 40... exf4 {[%clk 0:00:16.2]} 41. Kxf4 {[%clk 0:01:00.8]}
41... b5 {[%clk 0:00:16.1]} 42. Ke5 {[%clk 0:00:57.1]} 42... Kxg5 {[%clk
0:00:08]} 43. Kd5 {[%clk 0:00:56.8]} 43... c4 {[%clk 0:00:05.6]} 44. Kxd4 {[%clk
0:00:55.6]} 44... cxd3 {[%clk 0:00:05.4]} 45. cxd3 {[%clk 0:00:54.9]} 45... Kf4
{[%clk 0:00:03.1]} 46. Kc5 {[%clk 0:00:54.9]} 46... a6 {[%clk 0:00:03.2]} 47.
Kb6 {[%clk 0:00:54.6]} 47... Ke5 {[%clk 0:00:04.1]} 48. Kxa6 {[%clk 0:00:54.6]}
48... b4 {[%clk 0:00:03.5]} 49. Kb5 {[%clk 0:00:54.6]} 49... b3 {[%clk
0:00:03.5]} 50. a4 {[%clk 0:00:53.7]} 50... Kd4 {[%clk 0:00:04.4]} 51. Kb4
{[%clk 0:00:54.1]} 51... Kxd3 {[%clk 0:00:02.3]} 52. Kxb3 {[%clk 0:00:54.4]}
52... Kxe4 {[%clk 0:00:02.1]} 53. Kc4 {[%clk 0:00:54.5]} 1-0

[Event "*** Titled Tuesday Blitz"]
[Site "Chess.com"]
[Date "2021.02.16"]
[Round "5"]
[White "Guzman70"]
[Black "noblerone"]
[Result "1-0"]
[WhiteElo "2240"]
[BlackElo "2396"]
[TimeControl "180+1"]
[EndTime "10:58:05 PST"]
[Termination "Guzman70 won on time"]

1. d4 {[%clk 0:03:00.9]} 1... d5 {[%clk 0:02:58]} 2. Bf4 {[%clk 0:02:58.7]} 2...
c5 {[%clk 0:02:57.4]} 3. e3 {[%clk 0:02:56.5]} 3... Nc6 {[%clk 0:02:57.3]} 4. c3
{[%clk 0:02:56.2]} 4... Nf6 {[%clk 0:02:56.6]} 5. Nd2 {[%clk 0:02:39.6]} 5...
Bf5 {[%clk 0:02:52]} 6. Ngf3 {[%clk 0:02:28.6]} 6... e6 {[%clk 0:02:49.4]} 7.
Bb5 {[%clk 0:02:14.1]} 7... Qb6 {[%clk 0:02:45.1]} 8. Qa4 {[%clk 0:02:08.7]}
8... a6 {[%clk 0:02:19.2]} 9. Bxc6+ {[%clk 0:02:04.8]} 9... bxc6 {[%clk
0:01:58]} 10. Ne5 {[%clk 0:01:59.1]} 10... Rc8 {[%clk 0:01:56.5]} 11. O-O {[%clk
0:01:42.7]} 11... Be7 {[%clk 0:01:32.1]} 12. dxc5 {[%clk 0:01:36.1]} 12... Bxc5
{[%clk 0:01:26]} 13. Nb3 {[%clk 0:01:26]} 13... Bc2 {[%clk 0:00:52]} 14. Rfc1
{[%clk 0:01:11.8]} 14... Bf5 {[%clk 0:00:36.1]} 15. Nxc5 {[%clk 0:01:03.8]}
15... Qxc5 {[%clk 0:00:37]} 16. Qd4 {[%clk 0:01:02.1]} 16... Qb5 {[%clk
0:00:29.6]} 17. a4 {[%clk 0:00:44.7]} 17... Qb7 {[%clk 0:00:28.8]} 18. Nd3
{[%clk 0:00:11.4]} 18... Bxd3 {[%clk 0:00:27.1]} 19. Qxd3 {[%clk 0:00:11.4]}
19... O-O {[%clk 0:00:27.2]} 20. b4 {[%clk 0:00:11.6]} 20... Nd7 {[%clk
0:00:25.2]} 21. Bd6 {[%clk 0:00:11.1]} 21... Rfe8 {[%clk 0:00:24.7]} 22. a5
{[%clk 0:00:11.6]} 22... Qb5 {[%clk 0:00:24.2]} 23. Qd4 {[%clk 0:00:10.5]} 23...
e5 {[%clk 0:00:23.7]} 24. Qg4 {[%clk 0:00:10.4]} 24... Nf6 {[%clk 0:00:22.6]}
25. Qf5 {[%clk 0:00:09.6]} 25... e4 {[%clk 0:00:17]} 26. Be5 {[%clk 0:00:08.8]}
26... Re6 {[%clk 0:00:11.7]} 27. Bxf6 {[%clk 0:00:08.9]} 27... gxf6 {[%clk
0:00:12.4]} 28. Qg4+ {[%clk 0:00:07.8]} 28... Kf8 {[%clk 0:00:11.2]} 29. Rd1
{[%clk 0:00:07.4]} 29... Rce8 {[%clk 0:00:06.6]} 30. Rac1 {[%clk 0:00:07.1]}
30... Ke7 {[%clk 0:00:04.7]} 31. Qf4 {[%clk 0:00:07.2]} 31... Rd8 {[%clk
0:00:04]} 32. h4 {[%clk 0:00:05.8]} 32... h5 {[%clk 0:00:02.2]} 33. Rd4 {[%clk
0:00:05.5]} 33... Re5 {[%clk 0:00:01.8]} 34. Qh6 {[%clk 0:00:05.1]} 1-0

[Event "*** Titled Tuesday Blitz"]
[Site "Chess.com"]
[Date "2021.02.16"]
[Round "5"]
[White "TST2014"]
[Black "JQuiroga18"]
[Result "0-1"]
[WhiteElo "2569"]
[BlackElo "2427"]
[TimeControl "180+1"]
[EndTime "10:58:06 PST"]
[Termination "JQuiroga18 won by checkmate"]

1. d4 {[%clk 0:03:00.9]} 1... Nf6 {[%clk 0:02:59.5]} 2. c4 {[%clk 0:02:59.7]}
2... e6 {[%clk 0:02:59.4]} 3. Nf3 {[%clk 0:02:59.3]} 3... c5 {[%clk 0:02:58.8]}
4. e3 {[%clk 0:02:55]} 4... b6 {[%clk 0:02:53]} 5. d5 {[%clk 0:02:45.4]} 5...
exd5 {[%clk 0:02:47.9]} 6. cxd5 {[%clk 0:02:45.3]} 6... d6 {[%clk 0:02:48.3]} 7.
Nc3 {[%clk 0:02:42.8]} 7... g6 {[%clk 0:02:48.5]} 8. Bb5+ {[%clk 0:02:38.5]}
8... Bd7 {[%clk 0:02:47.2]} 9. a4 {[%clk 0:02:37.9]} 9... Bg7 {[%clk 0:02:46.6]}
10. O-O {[%clk 0:02:35.1]} 10... O-O {[%clk 0:02:45.4]} 11. h3 {[%clk
0:02:35.1]} 11... a6 {[%clk 0:02:44.9]} 12. Bd3 {[%clk 0:02:31.2]} 12... Re8
{[%clk 0:02:44.3]} 13. e4 {[%clk 0:02:31.1]} 13... Bc8 {[%clk 0:02:24.3]} 14.
Bf4 {[%clk 0:02:29.8]} 14... Bb7 {[%clk 0:02:17.1]} 15. Re1 {[%clk 0:02:27.7]}
15... Bf8 {[%clk 0:02:15.3]} 16. Nd2 {[%clk 0:02:23.7]} 16... Nbd7 {[%clk
0:02:14.7]} 17. Nc4 {[%clk 0:02:23.5]} 17... Ne5 {[%clk 0:02:05.4]} 18. Nxe5
{[%clk 0:02:17.4]} 18... dxe5 {[%clk 0:02:05.4]} 19. Bg5 {[%clk 0:02:13.7]}
19... Qd6 {[%clk 0:02:03.2]} 20. Nb1 {[%clk 0:01:59.1]} 20... h6 {[%clk
0:01:45.9]} 21. Be3 {[%clk 0:01:54]} 21... c4 {[%clk 0:01:36.9]} 22. Bc2 {[%clk
0:01:32.8]} 22... Nd7 {[%clk 0:01:18.1]} 23. Na3 {[%clk 0:01:30.6]} 23... Rac8
{[%clk 0:01:16]} 24. Qe2 {[%clk 0:01:28.2]} 24... Qc7 {[%clk 0:01:12]} 25. Rec1
{[%clk 0:01:26.1]} 25... Bc5 {[%clk 0:00:52.4]} 26. Bxh6 {[%clk 0:01:10.2]}
26... Bd4 {[%clk 0:00:52.2]} 27. Bd1 {[%clk 0:01:06.5]} 27... c3 {[%clk
0:00:23.7]} 28. bxc3 {[%clk 0:01:03.6]} 28... Bc5 {[%clk 0:00:23.7]} 29. h4
{[%clk 0:00:48.4]} 29... Qd6 {[%clk 0:00:20.4]} 30. Nc4 {[%clk 0:00:47.3]} 30...
Qf6 {[%clk 0:00:20.5]} 31. Bg5 {[%clk 0:00:47.1]} 31... Qg7 {[%clk 0:00:20.8]}
32. Bb3 {[%clk 0:00:42.9]} 32... f6 {[%clk 0:00:21]} 33. Be3 {[%clk 0:00:41.4]}
33... f5 {[%clk 0:00:20.7]} 34. Bg5 {[%clk 0:00:39.8]} 34... fxe4 {[%clk
0:00:17]} 35. Qxe4 {[%clk 0:00:38.2]} 35... Nf6 {[%clk 0:00:17]} 36. Qf3 {[%clk
0:00:26.1]} 36... Bxd5 {[%clk 0:00:16.4]} 37. Qxf6 {[%clk 0:00:25.6]} 37... Qxf6
{[%clk 0:00:14]} 38. Bxf6 {[%clk 0:00:26.5]} 38... Rf8 {[%clk 0:00:12.8]} 39.
Bxe5 {[%clk 0:00:19.6]} 39... Bxf2+ {[%clk 0:00:12.4]} 40. Kh2 {[%clk
0:00:19.8]} 40... Bxc4 {[%clk 0:00:12.6]} 41. Bxc4+ {[%clk 0:00:18.8]} 41...
Rxc4 {[%clk 0:00:13.5]} 42. Rf1 {[%clk 0:00:15.9]} 42... Rxh4# {[%clk
0:00:13.2]} 0-1